[Event "Frauenbundesliga 2024-25"]
[Site "Germany"]
[Date "2025.01.26"]
[Round "4.1"]
[White "Dolzhykova, Kateryna"]
[Black "Batsiashvili, Nino"]
[Result "1-0"]
[Annotator "TA"]
[ECO "C29"]
[WhiteElo "2299"]
[BlackElo "2476"]
[PlyCount "101"]
[EventDate "2024.11.06"]
[EventType "team-tourn"]
[EventCountry "GER"]
[SourceTitle "playchess.com"]
[Source "ChessBase"]
[SourceQuality "1"]
[TimeControl "40/5400+30:1800+30"]

{[%evp 20,101,0,0,0,-12,-12,-9,-10,-19,-9,-13,-14,-10,-20,-17,-20,-18,-19,-11,-11,-22,0,0,99,103,197,226,202,234,235,222,237,225,276,274,300,297,359,349,365,353,344,246,497,475,497,483,554,548,555,566,552,571,577,577,552,549,612,597,709,709,795,779,729,675,1804,1579,10933,1052,29980,6053,29986,29987,29987,29987,29991,29992,29992,29993,29993,29990,29990,29991]} 1. e4 {[%emt 0:00:07]} e5 {[%emt 0:00:06]} 2. Nc3 {[%emt 0:00:06]} Nf6 {[%emt 0:00:04]} 3. f4 {[%emt 0:00:06][%cal Bf2f4,Bf4e5][%mdl 32]} d5 {[%emt 0:00:15]} 4. fxe5 {[%emt 0:00:06]} Nxe4 {[%emt 0:00:04]} 5. Nf3 {[%emt 0:00:26]} Be7 {[%emt 0:01:00]} 6. d4 {[%emt 0:00:52]} O-O {[%emt 0:02:23]} 7. Bd3 {[%emt 0:00:16]} f5 {[%emt 0:00:11]} 8. exf6 {[%emt 0:04:36]} Bxf6 {[%emt 0:00:05]} 9. O-O {[%emt 0:02:01]} Nc6 {[%emt 0:28:23]} 10. Nxe4 {[%emt 0:06:45]} dxe4 {[%emt 0:00:05]} 11. Bxe4 {[%emt 0:00:10] [#] Hoping for c3.} Nxd4 {[%emt 0:02:07]} 12. Ng5 {[%emt 0:07:02]} Bf5 {[%emt 0:04:25]} 13. Bxf5 {[%emt 0:14:51]} Nxf5 {[%emt 0:00:47] The position is equal.} 14. Qxd8 {[%emt 0:00:14]} Raxd8 {[%emt 0:02:19][%cal Ba8d8,Bd8d5,Bd5f5][%mdl 32]} 15. Ne6 {[%emt 0:05:38][%cal Oc2c3] And now c3! would win.} Bd4+ {[%emt 0:05:19]} 16. Nxd4 $1 {[%emt 0:00:13]} (16. Kh1 $2 Ng3+ 17. hxg3 Rxf1+ 18. Kh2 Bg1+ 19. Kh3 Rdd1 20. Nxc7 Rxc1 $19) 16... Nxd4 {[%emt 0:01:31]} 17. Bg5 {[%emt 0:02:13]} Rd5 {[%emt 0:10:42]} 18. Rxf8+ {[%emt 0:00:18]} Kxf8 $11 {[%emt 0:00:05][%mdl 4096] Endgame. KRB-KRN} 19. Rf1+ {[%emt 0:00:10]} Ke8 {[%emt 0:00:58]} 20. Re1+ {[%emt 0:00:11]} Kd7 {[%emt 0:00:31]} 21. Re7+ {[%emt 0:04:40]} Kd6 {[%emt 0:00:15]} (21... Kc6 $11 {keeps the balance.} 22. Bf4 (22. Rxg7 $2 Ne6 $19) 22... Rd7) 22. Rxg7 $16 {[%emt 0:01:01] Black is now going downhill.} Rf5 {[%emt 0:20:21]} (22... h5 $16 {was worth a try.} 23. h4 Ne6 24. Be7+ Kc6) 23. h4 $18 {[%emt 0:02:15][%cal Bh2h4,Bh4h5,Bh5h6][%mdl 32]} h5 {[%emt 0:00:55]} 24. Rh7 {[%emt 0:00:57]} Nxc2 {[%emt 0:00:42]} 25. Rxh5 {[%emt 0:00:33]} Nd4 {[%emt 0:00:06]} 26. Rh8 {[%emt 0:09:23]} c5 {[%emt 0:06:51]} 27. Be3 {[%emt 0:02:12]} Kd5 {[%emt 0:04:19]} 28. h5 {[%emt 0:02:36] aiming for Bxd4.} Ne2+ {[%emt 0:05:35]} 29. Kh2 {[%emt 0:00:07] Threatens to win with g4.} Re5 {[%emt 0:00:51]} 30. Bf2 {[%emt 0:08:11]} Ke4 {[%emt 0:00:35]} 31. Bg3 {[%emt 0:02:50]} (31. g4 Kf3 32. h6 Kxg4 $18 (32... Kxf2 $2 33. Rf8+ $18)) 31... Rg5 {[%emt 0:01:12]} (31... Nf4 32. h6 Re7) 32. Bh4 {[%emt 0:01:00]} Re5 {[%emt 0:02:11]} 33. h6 {[%emt 0:01:10]} Rh5 {[%emt 0:00:43][%cal Rh5h4]} 34. g3 {[%emt 0:02:05][%cal Bg2g3,Bg3g4,Bg4g5,Bg5g6][%mdl 32]} Kf5 {[%emt 0:00:59] [#]} 35. h7 $1 {[%emt 0:00:37]} Kg6 {[%emt 0:00:32]} 36. Re8 {[%emt 0:00:33]} Rxh7 {[%emt 0:00:04]} 37. Rxe2 {[%emt 0:00:12] KRB-KR} Rd7 {[%emt 0:00:02]} 38. Kh3 {[%emt 0:01:14]} b5 {[%emt 0:00:02][%cal Bb7b5,Bb5b4,Bb4c3][%mdl 32]} 39. g4 {[%emt 0:02:25]} Rd3+ {[%emt 0:00:17]} 40. Bg3 {[%emt 0:00:12]} a5 {[%emt 0:01:59]} 41. Re6+ {[%emt 0:31:24]} Kf7 {[%emt 0:30:05]} 42. Rb6 {[%emt 0:00:06]} b4 {[%emt 0:00:04]} 43. g5 {[%emt 0:01:15]} c4 {[%emt 0:00:35]} 44. Kg4 {[%emt 0:00:12] g6+ would kill now.} c3 {[%emt 0:00:00]} 45. bxc3 {[%emt 0:00:00]} (45. g6+ $142 Kf8 46. Bd6+ (46. bxc3 Rd1 $18) 46... Rxd6 47. Rxd6 Ke7 48. bxc3 Kxd6 49. cxb4 (49. g7 Kc5 50. g8=Q bxc3 51. Kf4 Kd6 52. Qc4 c2 53. Qxc2 Kd5) 49... axb4 50. g7) 45... bxc3 {[%emt 0:00:00]} 46. g6+ {[%emt 0:00:00] White mates.} Ke7 {[%emt 0:00:00]} 47. g7 {[%emt 0:00:00]} Rd4+ {[%emt 0:00:00]} 48. Kf5 {[%emt 0:00:00]} Kf7 {[%emt 0:00:00]} 49. Rb7+ {[%emt 0:00:00]} Kg8 {[%emt 0:00:00]} 50. Rb8+ {[%emt 0:00:00]} Kxg7 {[%emt 0:00:00]} 51. Be5+ {[%emt 0:00:00] Weighted Error Value: White=0.05 (flawless) /Black=0.33.  Mistake:       	---       	Black=3      OK:         	White=16    	Black=11     Best:        	White=5     	---        Strong:       	White=2     	---} 1-0

[Event "Frauenbundesliga 2024-25"]
[Site "Germany"]
[Date "2025.01.26"]
[Round "4.1"]
[White "Peglau, Charis"]
[Black "Socko, Monika"]
[Result "0-1"]
[Annotator "TA"]
[ECO "A17"]
[WhiteElo "2210"]
[BlackElo "2371"]
[PlyCount "102"]
[EventDate "2024.11.06"]
[EventType "team-tourn"]
[EventCountry "GER"]
[SourceTitle "playchess.com"]
[Source "ChessBase"]
[SourceQuality "1"]
[TimeControl "40/5400+30:1800+30"]

{[%evp 9,102,5,8,8,6,6,13,0,-2,0,1,0,29,16,43,33,37,-5,14,9,1,0,8,10,15,12,8,10,7,0,6,0,0,-21,-14,-22,-14,-14,-19,-143,-159,-150,-153,-174,-179,-296,-297,-297,-295,-293,-296,-287,-285,-322,-316,-320,-327,-417,-350,-493,-325,-403,-385,-504,-525,-527,-527,-526,-526,-515,-514,-492,-488,-743,-743,-743,-743,-807,-800,-913,-898,-883,-894,-1395,-1395,-1374,-1364,-1364,-941,-1034,-996,-1227,-1212,-844,-834]} 1. Nf3 {[%emt 0:00:04]} Nf6 {[%emt 0:00:07]} 2. c4 {[%emt 0:00:09]} e6 {[%emt 0:00:36]} 3. Nc3 {[%emt 0:00:30]} d5 {[%emt 0:00:25]} 4. e3 {[%emt 0:00:28]} b6 {[%emt 0:02:08]} 5. b3 {[%emt 0:02:29]} Bb7 {[%emt 0:01:31]} 6. Bb2 {[%emt 0:00:59] A17: English Opening: 1...Nf6 with ...Bb4.} Nbd7 {[%emt 0:05:40]} 7. d4 {[%emt 0:04:40]} a6 {[%emt 0:01:02]} 8. Be2 {[%emt 0:02:51] The position is equal.} Bd6 {[%emt 0:00:49]} 9. O-O {[%emt 0:07:15]} O-O {[%emt 0:00:21]} 10. a4 {[%emt 0:05:01]} Ne4 {[%emt 0:08:02]} 11. Qc2 $146 {[%emt 0:04:06]} (11. a5 Bb4 12. Na2 Bd6 13. Nc3 Bb4 14. Na2 Bd6 15. Nc3 Ndf6 16. Qc2 Nxc3 17. Bxc3 {½-½ Santos Latasa,J (2653)-Sargsyan,S (2640) Krakow Euro Pairs Blitz Qual 2023 (1.4)}) 11... Nxc3 {[%emt 0:20:25]} 12. Qxc3 {[%emt 0:02:16][%cal Oc4c5] [#]} Nf6 {[%emt 0:01:52]} 13. Ba3 {[%emt 0:02:03]} Ne4 {[%emt 0:07:38]} 14. Qc2 {[%emt 0:00:57]} Bxa3 {[%emt 0:04:34]} 15. Rxa3 {[%emt 0:00:02]} Qd6 {[%emt 0:00:30]} 16. Raa1 {[%emt 0:00:20]} a5 {[%emt 0:01:07]} 17. Rac1 {[%emt 0:10:59]} c5 {[%emt 0:06:45]} 18. Rfd1 {[%emt 0:02:28]} Rac8 {[%emt 0:05:59]} 19. dxc5 {[%emt 0:16:15]} Qxc5 {[%emt 0:01:03]} 20. Qb2 {[%emt 0:01:03]} Qb4 {[%emt 0:03:10]} 21. Nd4 {[%emt 0:06:01]} Rfd8 {[%emt 0:04:21]} 22. f3 {[%emt 0:20:05]} Nc5 {[%emt 0:02:38]} 23. Rb1 {[%emt 0:00:20] [#] Strongly threatening Nc2.} dxc4 {[%emt 0:02:22]} 24. bxc4 {[%emt 0:03:14] Black converts the advantage convincingly.} (24. Bxc4 $11 h6 (24... Nxa4 25. bxa4 Qxb2 26. Rxb2 $16) 25. Bf1) 24... Qxb2 $17 {[%emt 0:01:16]} (24... Nxa4 25. Qa2 (25. Qxb4 axb4 26. Rxb4 Nc3 $11) 25... Nc3 (25... Qc3 $2 26. Rb3 $18) 26. Rxb4 $16) ({And not} 24... Qxa4 25. Qxb6 Qe8 26. Qxa5 $16) 25. Rxb2 {[%emt 0:00:01]} Nxa4 {[%emt 0:00:09]} 26. Rb3 {[%emt 0:00:06]} e5 {[%emt 0:04:08]} 27. Ra1 {[%emt 0:03:47]} (27. Ra3 $142 exd4 28. Rxa4 dxe3 29. Rb1) 27... Nc5 $19 {[%emt 0:00:56]} 28. Rxb6 {[%emt 0:00:06]} exd4 {[%emt 0:00:21]} 29. exd4 {[%emt 0:00:07]} Rxd4 {[%emt 0:00:18]} 30. Rxa5 {[%emt 0:00:10]} Rd7 {[%emt 0:02:59]} 31. Rab5 {[%emt 0:03:41]} g6 {[%emt 0:01:34]} 32. Kf2 {[%emt 0:00:32]} Kg7 {[%emt 0:00:38]} 33. g3 {[%emt 0:01:35]} Ba8 {[%emt 0:00:42]} 34. Ra5 {[%emt 0:01:00]} (34. Rb8 {is a better defense.} Rxb8 35. Rxb8) 34... Ne6 {[%emt 0:01:54]} 35. h4 {[%emt 0:01:24]} Nd4 {[%emt 0:01:13] and ...Nxe2 would now be decisive} 36. f4 {[%emt 0:00:48]} Nxe2 {[%emt 0:00:29] Black is clearly winning.} 37. Kxe2 {[%emt 0:00:01]} Re8+ {[%emt 0:00:57]} 38. Re5 {[%emt 0:00:39]} Rxe5+ {[%emt 0:00:06]} 39. fxe5 {[%emt 0:00:01][%mdl 4096] Endgame KRB-KR} Re7 {[%emt 0:00:06]} 40. Kd3 {[%emt 0:00:48]} Rxe5 {[%emt 0:00:05]} 41. Kd4 {[%emt 0:02:20]} (41. Rb2 $142) 41... Re4+ {[%emt 0:00:00]} 42. Kc5 {[%emt 0:00:12]} Re3 {[%emt 0:00:00]} 43. Rb8 {[%emt 0:01:18]} Bg2 {[%emt 0:00:28]} 44. Kd6 {[%emt 0:00:24]} Rxg3 {[%emt 0:00:54]} 45. Rb2 {[%emt 0:01:12]} Rd3+ {[%emt 0:00:54]} 46. Ke5 {[%emt 0:02:41]} f6+ {[%emt 0:00:23]} 47. Ke6 {[%emt 0:00:35]} Bh3+ {[%emt 0:00:03]} 48. Ke7 {[%emt 0:00:04]} Rd7+ {[%emt 0:00:11]} 49. Ke8 {[%emt 0:00:05]} Rc7 {[%emt 0:00:35]} 50. Rc2 {[%emt 0:00:30]} Rc5 {[%emt 0:00:24]} 51. Ke7 {[%emt 0:00:41]} Bf1 {[%emt 0:00:17] Weighted Error Value: White=0.37/Black=0.10 (very precise)   Mistake:       	White=4     	---        Inaccurate:     	White=2     	Black=3      OK:         	White=6     	Black=20     Best:        	White=3     	Black=2} 0-1

[Event "Frauenbundesliga 2024-25"]
[Site "Germany"]
[Date "2025.01.26"]
[Round "4.2"]
[White "Javakhishvili, Lela"]
[Black "Van Foreest, Machteld"]
[Result "1-0"]
[Annotator "TA"]
[ECO "D54"]
[WhiteElo "2426"]
[BlackElo "2312"]
[PlyCount "51"]
[EventDate "2024.11.06"]
[EventType "team-tourn"]
[EventCountry "GER"]
[SourceTitle "playchess.com"]
[Source "ChessBase"]
[SourceQuality "1"]
[TimeControl "40/5400+30:1800+30"]

{[%evp 11,51,16,20,22,28,22,29,29,22,19,55,42,41,35,148,157,208,212,238,135,266,257,319,307,320,315,329,290,285,215,387,310,318,333,316,331,368,243,260,243,254,254]} 1. c4 {[%emt 0:00:09]} e6 {[%emt 0:00:25]} 2. Nc3 {[%emt 0:00:31]} d5 {[%emt 0:00:17]} 3. d4 {[%emt 0:00:07]} Nf6 {[%emt 0:00:05]} 4. Bg5 {[%emt 0:00:55]} Be7 {[%emt 0:00:24]} 5. e3 {[%emt 0:00:07]} b6 {[%emt 0:06:54]} 6. Rc1 {[%emt 0:02:05]} O-O {[%emt 0:02:09]} 7. cxd5 {[%emt 0:10:47] D54: Queen's Gambit Declined: 4 Bg5 Be7: Lines without Nf3.} exd5 {[%emt 0:01:17]} 8. Bd3 {[%emt 0:00:09]} h6 {[%emt 0:10:29]} 9. Bxf6 {[%emt 0:04:40] White has an edge.} Bxf6 {[%emt 0:00:07]} 10. Qf3 $146 {[%emt 0:00:06]} (10. Nf3 Be6 11. O-O c5 12. dxc5 bxc5 13. e4 c4 14. exd5 cxd3 15. dxe6 Na6 16. Qa4 Nc7 17. exf7+ Rxf7 18. Qc4 Qd7 19. Rcd1 Rd8 20. Rd2 Ne6 21. Ne4 Qd5 22. Qxd5 Rxd5 23. Rfd1 Rc7 24. g3 Rc2 25. Nxf6+ gxf6 26. Ne1 {1-0 Volzhin,A (2556)-Ledger,D (2302) Bergen Sommer op 2000 (1)}) 10... Be6 {[%emt 0:06:10]} 11. Nge2 {[%emt 0:00:16]} c5 {[%emt 0:01:11]} 12. Nf4 {[%emt 0:06:03][%cal Rc3d5]} Re8 {[%emt 0:27:08]} (12... cxd4 $2 13. Ncxd5 Bxd5 14. Nxd5 (14. Qxd5 Qxd5 15. Nxd5 Nd7 $16) 14... dxe3 15. Nxf6+ Qxf6 16. Qxf6 (16. Qxa8 $2 Qxf2+ 17. Kd1 Qd2#) (16. Qxe3 Nd7 $11) (16. fxe3 Nd7 $11) 16... gxf6 17. Be4 $18 (17. fxe3 Nd7 $14)) (12... Nc6 $1 $14) 13. O-O {[%emt 0:10:30] White is much more active. The black rooks are passive.} (13. Nfxd5 $6 Nd7 $14) 13... cxd4 {[%emt 0:01:59]} (13... Nd7 $16 {is a better defense.}) 14. Ncxd5 $40 {[%emt 0:00:33][%mdl 128] Black is in trouble.} Bxd5 {[%emt 0:20:21]} 15. Qxd5 {[%emt 0:14:11]} (15. Nxd5 $18 Nd7 16. Bb5) 15... Nd7 {[%emt 0:01:48] A sharp opening Black is weak on the light squares} (15... Qxd5 $16 16. Nxd5 dxe3) 16. Bb5 {[%emt 0:02:12][%cal Bd3b5,Bb5d7,Bd7c6][%mdl 32]} ({Much less strong is} 16. exd4 $6 Nf8 $16) 16... dxe3 {[%emt 0:15:18][%cal Of6g5]} 17. Bxd7 {[%emt 0:04:37]} exf2+ {[%emt 0:01:00]} 18. Rxf2 {[%emt 0:00:52]} Re5 {[%emt 0:00:01]} 19. Qd3 {[%emt 0:05:16]} Be7 {[%emt 0:00:36]} 20. Bc6 {[%emt 0:05:58]} Qc8 {[%emt 0:02:06] [#]} (20... Rc8) 21. Nd5 {[%emt 0:04:00]} (21. Bxa8 $2 {is the wrong capture.} Qxc1+ 22. Qf1 Re1 $19) 21... Bg5 {[%emt 0:00:15]} 22. Rcc2 {[%emt 0:00:59]} (22. Bxa8 Qxc1+ 23. Rf1 Qxb2 $16) 22... Rb8 {[%emt 0:00:46]} 23. g3 {[%emt 0:05:54]} Qh3 {[%emt 0:00:40]} 24. Nf4 {[%emt 0:02:01]} Re1+ {[%emt 0:00:25]} 25. Rf1 {[%emt 0:00:07]} Rxf1+ {[%emt 0:00:31]} 26. Qxf1 {[%emt 0:00:02] White took control after the opening.   Weighted Error Value: White=0.29 (precise) /Black=0.40  Mistake:       	White=1     	Black=4      Inaccurate:     	White=1     	Black=1      OK:         	White=3     	Black=8      Best:        	White=4     	---} 1-0

[Event "Frauenbundesliga 2024-25"]
[Site "Germany"]
[Date "2025.01.26"]
[Round "4.2"]
[White "Papp, Sarah"]
[Black "Roessler, Ulrike"]
[Result "1-0"]
[Annotator "TA"]
[ECO "B20"]
[WhiteElo "2268"]
[BlackElo "2052"]
[PlyCount "103"]
[EventDate "2024.11.06"]
[EventType "team-tourn"]
[EventCountry "GER"]
[SourceTitle "playchess.com"]
[Source "ChessBase"]
[SourceQuality "1"]
[TimeControl "40/5400+30:1800+30"]

{[%evp 18,103,40,27,35,29,31,35,30,25,49,52,42,42,29,31,79,102,99,41,116,113,106,110,136,141,145,145,136,137,155,99,154,159,342,231,237,215,243,234,239,240,257,265,258,239,225,200,217,206,425,417,469,468,427,406,463,502,472,432,548,520,535,520,562,500,533,514,533,532,6091,6091,6091,6087,5600,5506,1858,1413,29995,29996,29996,29990,29990,29991,29991,29992,29992,29993]} 1. e4 {[%emt 0:00:04]} c5 {[%emt 0:00:04]} 2. d3 {[%emt 0:00:05]} Nc6 {[%emt 0:00:10]} 3. g3 {[%emt 0:00:04]} g6 {[%emt 0:00:13]} 4. Bg2 {[%emt 0:00:05]} Bg7 {[%emt 0:00:03]} 5. f4 {[%emt 0:00:04]} d6 {[%emt 0:01:19]} 6. Nf3 {[%emt 0:00:07]} e6 {[%emt 0:00:50]} 7. O-O {[%emt 0:00:08]} Nge7 {[%emt 0:00:03]} 8. c3 {[%emt 0:00:06]} O-O {[%emt 0:03:12]} 9. Be3 {[%emt 0:00:11]} f5 {[%emt 0:03:17] Recently 9...b5 got a lot of attention.} 10. Nbd2 {[%emt 0:02:44][%cal Bb1d2,Bd2e4,Be4g5][%mdl 32]} Rb8 {[%emt 0:04:48] B20: Sicilian: Unusual White 2nd moves.} 11. Rc1 {[%emt 0:05:40]} b6 {[%emt 0:03:51]} 12. Re1 {[%emt 0:05:01]} Qd7 $146 {[%emt 0:04:16] White is slightly better.} (12... h6 13. Bf2 Kh8 14. d4 fxe4 15. Nxe4 c4 16. Nh4 b5 17. Nd2 d5 18. Ndf3 Kh7 {½-½ Hoolt,S (2281)-Goczo,M (2201) Budapest One Week IM-A 02 2024 (3)}) 13. d4 {[%emt 0:07:24]} Ba6 {[%emt 0:08:15] Dodges Qe2} 14. exf5 {[%emt 0:08:32]} Nxf5 {[%emt 0:02:26]} 15. Ne4 {[%emt 0:03:26][%cal Rd4c5]} cxd4 {[%emt 0:03:55]} 16. Bxd4 {[%emt 0:02:40]} Nfxd4 {[%emt 0:01:43]} (16... Ncxd4 $14 {feels stronger.} 17. Nxd4 Nxd4 18. cxd4 Rbc8) 17. cxd4 $16 {[%emt 0:11:01]} Nb4 {[%emt 0:08:13]} 18. Rc3 {[%emt 0:02:22] Repels Nd3} (18. Nf2 $16) 18... Bb7 {[%emt 0:03:55]} (18... Nd5 $14) 19. Neg5 {[%emt 0:03:36]} Bd5 {[%emt 0:04:15][%cal Oh7h6]} 20. Bh3 {[%emt 0:08:38][%cal Rg5e6]} Rfe8 {[%emt 0:02:50][%cal Oh7h6]} (20... Nxa2 $2 21. Rce3 $18 (21. Bxe6+ Bxe6 22. Nxe6 Nxc3 $11)) 21. Rce3 {[%emt 0:12:07]} Qc6 {[%emt 0:15:36]} 22. Bxe6+ {[%emt 0:05:54]} Bxe6 {[%emt 0:00:06]} 23. Rxe6 {[%emt 0:02:37]} Rxe6 {[%emt 0:04:17]} 24. Qb3 {[%emt 0:07:20]} ({White should play} 24. Rxe6 {Threatens to win with Qb3.} Rc8 25. Qb3) 24... Nd5 {[%emt 0:12:20]} 25. Nxe6 {[%emt 0:00:15][%cal Of4f5] A dynamic duo of knights.} a5 $2 {[%emt 0:03:16] [#] This move loses the game for Black.} (25... Rc8 $16 26. Nxg7 Kxg7) 26. Nc7 $1 {[%emt 0:03:23][%mdl 512]} Qxc7 {[%emt 0:00:31]} 27. Qxd5+ {[%emt 0:00:05]} Kh8 {[%emt 0:01:12]} 28. Ng5 {[%emt 0:00:52][%cal Bf3g5,Bg5e6,Be6c5][%mdl 32]} h6 {[%emt 0:00:34]} 29. Ne6 {[%emt 0:02:16]} Qe7 {[%emt 0:00:29]} 30. Kf2 {[%emt 0:04:47]} Re8 {[%emt 0:00:36]} 31. Re4 {[%emt 0:00:48]} Qd7 {[%emt 0:04:23]} 32. b3 {[%emt 0:02:06]} Bf6 {[%emt 0:02:40]} 33. h4 {[%emt 0:00:26]} b5 $2 {[%emt 0:02:05]} (33... a4 34. Re2 a3) 34. Nc5 $18 {[%emt 0:01:37]} Qd8 {[%emt 0:00:41]} 35. Rxe8+ {[%emt 0:00:02]} Qxe8 {[%emt 0:00:05]} 36. Qxd6 {[%emt 0:00:09][%mdl 4096] Endgame KQB-KQN. White is two pawns up.} Kg7 {[%emt 0:00:35]} 37. Ne6+ {[%emt 0:00:35]} Kf7 {[%emt 0:00:05]} 38. d5 {[%emt 0:00:22]} a4 {[%emt 0:01:12]} 39. Qc7+ {[%emt 0:00:58]} Kg8 {[%emt 0:00:20]} 40. Qc6 {[%emt 0:01:02]} Qe7 {[%emt 0:01:06]} 41. Qxb5 {[%emt 0:01:26]} axb3 {[%emt 0:00:55]} 42. axb3 {[%emt 0:00:10]} Qa7+ {[%emt 0:00:17]} 43. Kf3 {[%emt 0:11:43] [#]} Qa1 {[%emt 0:03:59]} 44. Qe8+ {[%emt 0:01:17]} Kh7 {[%emt 0:00:05]} 45. Qf7+ {[%emt 0:00:48]} Kh8 {[%emt 0:00:07]} 46. Qxg6 {[%emt 0:00:44]} Qd1+ {[%emt 0:01:28]} 47. Kf2 {[%emt 0:00:23]} Bc3 {[%emt 0:02:39]} 48. Qxh6+ {[%emt 0:01:04] White mates.} Kg8 {[%emt 0:00:05]} 49. Qg6+ {[%emt 0:00:05]} Kh8 {[%emt 0:00:04]} 50. Qe8+ {[%emt 0:00:05]} Kh7 {[%emt 0:00:09]} 51. Ng5+ {[%emt 0:01:05]} Kh6 {[%emt 0:00:08]} 52. Qe6+ {[%emt 0:00:11] Weighted Error Value: White=0.12 (very precise) /Black=0.47  Loses game:     	---       	Black=1      Mistake:       	White=2     	Black=4      Inaccurate:     	White=1     	Black=1      OK:         	White=15    	Black=12     Best:        	White=1     	Black=2} 1-0